Workbook

Sheet 1.Semester
A1: Schuljahr : 201x / 201y | B1: 1.Semester | D1: Thema 1 | F1: Thema 2 | H1: Thema 3 | J1: Thema 4
A2: ="Anzahl = " & COUNTA(A5:A29) -> Anzahl = 2 | D2: Datum | F2: Datum | H2: Datum | J2: Datum | R2: Nebenrechnung Gewichte | X2: Nebenrechnung gewichtete Noten
D3: Gewicht | E3: 1 | F3: Gewicht | G3: 1 | H3: Gewicht | I3: 1 | J3: Gewicht | K3: 1
A4: Name | B4: Zeugnis gerundet | C4: Zeugnis | D4: Punkte1 | E4: N1 | F4: Punkte2 | G4: N2 | H4: Punkte3 | I4: N3 | J4: Punkte4 | K4: N4 | L4: Gewicht-summe | M4: Nach-Name | O4: Bemerkungen | R4: Gewicht-summe | S4: G1 | T4: G2 | U4: G3 | V4: G4 | X4: N1 | Y4: N2 | Z4: N3 | AA4: N4
A5: Beispiel Hans | B5: =IF(C5="","",ROUND((C5*2),0)/2) -> 3 | C5: =IF(L5=0,"", ROUND( (X5+Y5+Z5+AA5)/L5,2)) -> 3.08 | D5: 2 | E5: =IF(D5="","",IF(D5<=$D$34,ROUND((3/$D$34*D5)+1,1), ROUND(2/($D$33-$D$34)*(D5-$D$34) + 4,1))) -> 1.4 | F5: 12 | G5: =IF(F5="","",IF(F5<=$F$34,ROUND((3/$F$34*F5)+1,1), ROUND(2/($F$33-$F$34)*(F5-$F$34) + 4,2))) -> 4.25 | H5: 12 | I5: =IF(H5="","",IF(H5<=$H$34,ROUND((3/$H$34*H5)+1,1), ROUND(2/($H$33-$H$34)*(H5-$H$34) + 4,2))) -> 3.6 | K5: =IF(J5="","",IF(J5<=$J$34,ROUND((3/$J$34*J5)+1,1), ROUND(2/($J$33-$J$34)*(J5-$J$34) + 4,2))) ->  | L5: =R5 -> 3 | M5: =IF(A5<>"",A5,"") -> Beispiel Hans | R5: =SUM(S5:V5) -> 3 | S5: =IF(D5="", 0, $E$3) -> 1 | T5: =IF(F5="", 0, $G$3) -> 1 | U5: =IF(H5="", 0, $I$3) -> 1 | V5: =IF(J5="", 0, $K$3) -> 0 | X5: =IF(S5=0,0,S5*E5) -> 1.4 | Y5: =IF(T5=0,0,T5*G5) -> 4.25 | Z5: =IF(U5=0,0,U5*I5) -> 3.6 | AA5: =IF(V5=0,0,V5*K5) -> 0
A6: Unsinn Xaver | B6: =IF(C6="","",ROUND((C6*2),0)/2) -> 4.5 | C6: =IF(L6=0,"", ROUND( (X6+Y6+Z6+AA6)/L6,2)) -> 4.5 | D6: 14 | E6: =IF(D6="","",IF(D6<=$D$34,ROUND((3/$D$34*D6)+1,1), ROUND(2/($D$33-$D$34)*(D6-$D$34) + 4,1))) -> 4 | F6: 15 | G6: =IF(F6="","",IF(F6<=$F$34,ROUND((3/$F$34*F6)+1,1), ROUND(2/($F$33-$F$34)*(F6-$F$34) + 4,2))) -> 5 | I6: =IF(H6="","",IF(H6<=$H$34,ROUND((3/$H$34*H6)+1,1), ROUND(2/($H$33-$H$34)*(H6-$H$34) + 4,2))) ->  | K6: =IF(J6="","",IF(J6<=$J$34,ROUND((3/$J$34*J6)+1,1), ROUND(2/($J$33-$J$34)*(J6-$J$34) + 4,2))) ->  | L6: =R6 -> 2 | M6: =IF(A6<>"",A6,"") -> Unsinn Xaver | R6: 2 | S6: =IF(D6="", 0, $E$3) -> 1 | T6: =IF(F6="", 0, $G$3) -> 1 | U6: =IF(H6="", 0, $I$3) -> 0 | V6: =IF(J6="", 0, $K$3) -> 0 | X6: =IF(S6=0,0,S6*E6) -> 4 | Y6: =IF(T6=0,0,T6*G6) -> 5 | Z6: =IF(U6=0,0,U6*I6) -> 0 | AA6: =IF(V6=0,0,V6*K6) -> 0
B7: 3.5 | C7: 3.6 | D7: 12 | E7: 3.6 | L7: 1 | R7: 1 | S7: 1 | T7: 0 | U7: 0 | V7: 0 | X7: 3.6 | Y7: 0 | Z7: 0 | AA7: 0
L8: 0 | R8: 0 | S8: 0 | T8: 0 | U8: 0 | V8: 0 | X8: 0 | Y8: 0 | Z8: 0 | AA8: 0
L9: 0 | R9: 0 | S9: 0 | T9: 0 | U9: 0 | V9: 0 | X9: 0 | Y9: 0 | Z9: 0 | AA9: 0
L10: 0 | R10: 0 | S10: 0 | T10: 0 | U10: 0 | V10: 0 | X10: 0 | Y10: 0 | Z10: 0 | AA10: 0
L11: 0 | R11: 0 | S11: 0 | T11: 0 | U11: 0 | V11: 0 | X11: 0 | Y11: 0 | Z11: 0 | AA11: 0
L12: 0 | R12: 0 | S12: 0 | T12: 0 | U12: 0 | V12: 0 | X12: 0 | Y12: 0 | Z12: 0 | AA12: 0
L13: 0 | R13: 0 | S13: 0 | T13: 0 | U13: 0 | V13: 0 | X13: 0 | Y13: 0 | Z13: 0 | AA13: 0
L14: 0 | R14: 0 | S14: 0 | T14: 0 | U14: 0 | V14: 0 | X14: 0 | Y14: 0 | Z14: 0 | AA14: 0
L15: =R15 -> 0 | R15: 0 | S15: 0 | T15: 0 | U15: 0 | V15: 0 | X15: 0 | Y15: 0 | Z15: 0 | AA15: 0
L16: 0 | R16: 0 | S16: 0 | T16: 0 | U16: 0 | V16: 0 | X16: 0 | Y16: 0 | Z16: 0 | AA16: 0
L17: 0 | R17: 0 | S17: 0 | T17: 0 | U17: 0 | V17: 0 | X17: 0 | Y17: 0 | Z17: 0 | AA17: 0
L18: 0 | R18: 0 | S18: 0 | T18: 0 | U18: 0 | V18: 0 | X18: 0 | Y18: 0 | Z18: 0 | AA18: 0
L19: 0 | R19: 0 | S19: 0 | T19: 0 | U19: 0 | V19: 0 | X19: 0 | Y19: 0 | Z19: 0 | AA19: 0
L20: 0 | R20: 0 | S20: 0 | T20: 0 | U20: 0 | V20: 0 | X20: 0 | Y20: 0 | Z20: 0 | AA20: 0
L21: 0 | R21: 0 | S21: 0 | T21: 0 | U21: 0 | V21: 0 | X21: 0 | Y21: 0 | Z21: 0 | AA21: 0
L22: 0 | R22: 0 | S22: 0 | T22: 0 | U22: 0 | V22: 0 | X22: 0 | Y22: 0 | Z22: 0 | AA22: 0
L23: 0 | R23: 0 | S23: 0 | T23: 0 | U23: 0 | V23: 0 | X23: 0 | Y23: 0 | Z23: 0 | AA23: 0
L24: 0 | R24: 0 | S24: 0 | T24: 0 | U24: 0 | V24: 0 | X24: 0 | Y24: 0 | Z24: 0 | AA24: 0
L25: 0 | R25: =SUM(S25:V25) -> 0 | S25: 0 | T25: 0 | U25: 0 | V25: 0 | X25: 0 | Y25: 0 | Z25: 0 | AA25: 0
L26: 0 | R26: 0 | S26: 0 | T26: 0 | U26: 0 | V26: 0 | X26: 0 | Y26: 0 | Z26: 0 | AA26: 0
L27: 0 | R27: 0 | S27: 0 | T27: 0 | U27: 0 | V27: 0 | X27: 0 | Y27: 0 | Z27: 0 | AA27: 0
L28: 0 | R28: 0 | S28: 0 | T28: 0 | U28: 0 | V28: 0 | X28: 0 | Y28: 0 | Z28: 0 | AA28: 0
L29: 0 | R29: =SUM(S29:V29) -> 0 | S29: 0 | T29: 0 | U29: 0 | V29: 0 | X29: 0 | Y29: 0 | Z29: 0 | AA29: 0
A30: Durchschnitt | B30: =IF(ISERROR(ROUND(AVERAGE(B5:B29),2)),"",ROUND(AVERAGE(B5:B29),2)) -> 3.67 | C30: =IF(ISERROR(ROUND(AVERAGE(C5:C29),2)),"",ROUND(AVERAGE(C5:C29),2)) -> 3.73 | D30: =IF(ISERROR(ROUND(AVERAGE(D5:D29),2)),"",ROUND(AVERAGE(D5:D29),2)) -> 9.33 | E30: 3.00 | F30: 13.5 | G30: 4.63 | H30: 12 | I30: 3.6 | N30: =IF(ISERROR(ROUND(AVERAGE(N5:N29),2)),"",ROUND(AVERAGE(N5:N29),2)) ->  | O30: =IF(ISERROR(ROUND(AVERAGE(O5:O29),2)),"",ROUND(AVERAGE(O5:O29),2)) ->  | P30: =IF(ISERROR(ROUND(AVERAGE(P5:P29),2)),"",ROUND(AVERAGE(P5:P29),2)) -> 
A31: Stabwn | B31: =IF(ISERROR(ROUND(STDEVP(B5:B29),2)),"",ROUND(STDEVP(B5:B29),2)) -> 0.62 | C31: =IF(ISERROR(ROUND(STDEVP(C5:C29),2)),"",ROUND(STDEVP(C5:C29),2)) -> 0.59 | D31: =IF(ISERROR(ROUND(STDEVP(D5:D29),2)),"",ROUND(STDEVP(D5:D29),2)) -> 5.25 | E31: 1.14 | F31: 1.5 | G31: 0.38 | H31: 0 | I31: 0
A32: Pmax | D32: 27 | F32: 20 | H32: 25
A33: P Note 6 | D33: 24 | F33: 19 | H33: 24
A34: P Note 4 | D34: 14 | F34: 11 | H34: 14
B41: Nicht gewertete Prüfungen (z. B. gefehlt) nicht eintragen, d.h. leer lassen
B42: Ausdruck: Tabelle markieren und drucken.
B43: 2 tes Semester ist in Tabelle 2 oder dieses Formular neu benutzen
B44: Viel Spass ! Verbesserungswünsche mir sagen
B45: Gruesse Peter
A59: ihgdef | B59: k | C59: m | E59: p

Sheet 2.Semester
A1: Schuljahr : 201x / 201y | C1: 2.Semester | F1: Thema 1 | H1: Thema 2 | J1: Thema 3 | L1: Thema 4
A2: ="Anzahl = " & COUNTA(B5:B24) -> Anzahl = 2 | F2: Datum | H2: Datum | J2: Datum | L2: Datum | T2: Nebenrechnung Gewichte | Z2: Nebenrechnung gewichtete Noten
F3: Gewicht | G3: 1 | H3: Gewicht | I3: 1 | J3: Gewicht | K3: 1 | L3: Gewicht | M3: 1
A4: h | B4: Name | C4: 2.Sem Zeugnis gerundet | D4: 2.Sem Zeugnis | E4: 1.Sem Zeugnis | F4: Punkte1 | G4: N1 | H4: Punkte2 | I4: N2 | J4: Punkte3 | K4: N3 | L4: Punkte4 | M4: N4 | N4: Gewicht-summe | O4: Nach-Name | Q4: Bemerkungen | T4: Gewicht-summe | U4: G1 | V4: G2 | W4: G3 | X4: G4 | Z4: N1 | AA4: N2 | AB4: N3 | AC4: N4
A5: =IF(OR(C5="",E5=""),"",IF(C5>E5,"k",IF(C5=E5,"g",IF(C5<E5,"m")))) -> k | B5: Beispiel Hans | C5: =IF(D5="","",ROUND((D5*2),0)/2) -> 5 | D5: =IF(N5=0,"", ROUND( (Z5+AA5+AB5+AC5)/N5,2)) -> 5.22 | E5: ='1.Semester'!B5 -> 3 | F5: 15 | G5: =IF(F5="","",IF(F5<=$F$34,ROUND((3/$F$34*F5)+1,1), ROUND(2/($F$33-$F$34)*(F5-$F$34) + 4,1))) -> 4.2 | H5: 20 | I5: =IF(H5="","",IF(H5<=$H$34,ROUND((3/$H$34*H5)+1,1), ROUND(2/($H$33-$H$34)*(H5-$H$34) + 4,2))) -> 6.25 | J5: 20 | K5: =IF(J5="","",IF(J5<=$J$34,ROUND((3/$J$34*J5)+1,1), ROUND(2/($J$33-$J$34)*(J5-$J$34) + 4,2))) -> 5.2 | M5: =IF(L5="","",IF(L5<=$L$34,ROUND((3/$L$34*L5)+1,1), ROUND(2/($L$33-$L$34)*(L5-$L$34) + 4,2))) ->  | N5: =T5 -> 3 | O5: =IF(B5<>"",B5,"") -> Beispiel Hans | T5: =SUM(U5:X5) -> 3 | U5: =IF(F5="", 0, $G$3) -> 1 | V5: =IF(H5="", 0, $I$3) -> 1 | W5: =IF(J5="", 0, $K$3) -> 1 | X5: =IF(L5="", 0, $M$3) -> 0 | Z5: =IF(U5=0,0,U5*G5) -> 4.2 | AA5: =IF(V5=0,0,V5*I5) -> 6.25 | AB5: =IF(W5=0,0,W5*K5) -> 5.2 | AC5: =IF(X5=0,0,X5*M5) -> 0
A6: =IF(OR(C6="",E6=""),"",IF(C6>E6,"k",IF(C6=E6,"g",IF(C6<E6,"m")))) -> m | B6: Unsinn Xaver | C6: =IF(D6="","",ROUND((D6*2),0)/2) -> 2 | D6: =IF(N6=0,"", ROUND( (Z6+AA6+AB6+AC6)/N6,2)) -> 2.17 | E6: ='1.Semester'!B6 -> 4.5 | F6: 14 | G6: =IF(F6="","",IF(F6<=$F$34,ROUND((3/$F$34*F6)+1,1), ROUND(2/($F$33-$F$34)*(F6-$F$34) + 4,1))) -> 4 | H6: 1 | I6: =IF(H6="","",IF(H6<=$H$34,ROUND((3/$H$34*H6)+1,1), ROUND(2/($H$33-$H$34)*(H6-$H$34) + 4,2))) -> 1.3 | J6: 1 | K6: =IF(J6="","",IF(J6<=$J$34,ROUND((3/$J$34*J6)+1,1), ROUND(2/($J$33-$J$34)*(J6-$J$34) + 4,2))) -> 1.2 | M6: =IF(L6="","",IF(L6<=$L$34,ROUND((3/$L$34*L6)+1,1), ROUND(2/($L$33-$L$34)*(L6-$L$34) + 4,2))) ->  | N6: =T6 -> 3 | O6: =IF(B6<>"",B6,"") -> Unsinn Xaver | T6: 3 | U6: =IF(F6="", 0, $G$3) -> 1 | V6: =IF(H6="", 0, $I$3) -> 1 | W6: =IF(J6="", 0, $K$3) -> 1 | X6: =IF(L6="", 0, $M$3) -> 0 | Z6: =IF(U6=0,0,U6*G6) -> 4 | AA6: =IF(V6=0,0,V6*I6) -> 1.3 | AB6: =IF(W6=0,0,W6*K6) -> 1.2 | AC6: =IF(X6=0,0,X6*M6) -> 0
A7: g | C7: 3.5 | D7: 3.6 | E7: ='1.Semester'!B7 -> 3.5 | F7: 12 | G7: 3.6 | N7: 1 | T7: 1 | U7: 1 | V7: 0 | W7: 0 | X7: 0 | Z7: 3.6 | AA7: 0 | AB7: 0 | AC7: 0
E8: ='1.Semester'!B8 ->  | N8: 0 | T8: 0 | U8: 0 | V8: 0 | W8: 0 | X8: 0 | Z8: 0 | AA8: 0 | AB8: 0 | AC8: 0
E9: ='1.Semester'!B9 ->  | N9: 0 | T9: 0 | U9: 0 | V9: 0 | W9: 0 | X9: 0 | Z9: 0 | AA9: 0 | AB9: 0 | AC9: 0
E10: ='1.Semester'!B10 ->  | N10: 0 | T10: 0 | U10: 0 | V10: 0 | W10: 0 | X10: 0 | Z10: 0 | AA10: 0 | AB10: 0 | AC10: 0
E11: ='1.Semester'!B11 ->  | N11: 0 | T11: 0 | U11: 0 | V11: 0 | W11: 0 | X11: 0 | Z11: 0 | AA11: 0 | AB11: 0 | AC11: 0
E12: ='1.Semester'!B12 ->  | N12: 0 | T12: 0 | U12: 0 | V12: 0 | W12: 0 | X12: 0 | Z12: 0 | AA12: 0 | AB12: 0 | AC12: 0
E13: ='1.Semester'!B13 ->  | N13: 0 | T13: 0 | U13: 0 | V13: 0 | W13: 0 | X13: 0 | Z13: 0 | AA13: 0 | AB13: 0 | AC13: 0
E14: ='1.Semester'!B14 ->  | N14: 0 | T14: 0 | U14: 0 | V14: 0 | W14: 0 | X14: 0 | Z14: 0 | AA14: 0 | AB14: 0 | AC14: 0
E15: ='1.Semester'!B15 ->  | N15: 0 | T15: 0 | U15: 0 | V15: 0 | W15: 0 | X15: 0 | Z15: 0 | AA15: 0 | AB15: 0 | AC15: 0
E16: ='1.Semester'!B16 ->  | N16: 0 | T16: 0 | U16: 0 | V16: 0 | W16: 0 | X16: 0 | Z16: 0 | AA16: 0 | AB16: 0 | AC16: 0
E17: ='1.Semester'!B17 ->  | N17: 0 | T17: 0 | U17: 0 | V17: 0 | W17: 0 | X17: 0 | Z17: 0 | AA17: 0 | AB17: 0 | AC17: 0
E18: ='1.Semester'!B18 ->  | N18: 0 | T18: 0 | U18: 0 | V18: 0 | W18: 0 | X18: 0 | Z18: 0 | AA18: 0 | AB18: 0 | AC18: 0
E19: ='1.Semester'!B19 ->  | N19: 0 | T19: 0 | U19: 0 | V19: 0 | W19: 0 | X19: 0 | Z19: 0 | AA19: 0 | AB19: 0 | AC19: 0
E20: ='1.Semester'!B20 ->  | N20: 0 | T20: 0 | U20: 0 | V20: 0 | W20: 0 | X20: 0 | Z20: 0 | AA20: 0 | AB20: 0 | AC20: 0
E21: ='1.Semester'!B21 ->  | N21: 0 | T21: 0 | U21: 0 | V21: 0 | W21: 0 | X21: 0 | Z21: 0 | AA21: 0 | AB21: 0 | AC21: 0
E22: ='1.Semester'!B22 ->  | N22: 0 | T22: 0 | U22: 0 | V22: 0 | W22: 0 | X22: 0 | Z22: 0 | AA22: 0 | AB22: 0 | AC22: 0
E23: ='1.Semester'!B23 ->  | N23: 0 | T23: 0 | U23: 0 | V23: 0 | W23: 0 | X23: 0 | Z23: 0 | AA23: 0 | AB23: 0 | AC23: 0
E24: ='1.Semester'!B24 ->  | N24: 0 | T24: 0 | U24: 0 | V24: 0 | W24: 0 | X24: 0 | Z24: 0 | AA24: 0 | AB24: 0 | AC24: 0
E25: ='1.Semester'!B25 ->  | N25: 0 | T25: =SUM(U25:X25) -> 0 | U25: 0 | V25: 0 | W25: 0 | X25: 0 | Z25: 0 | AA25: 0 | AB25: 0 | AC25: 0
E26: ='1.Semester'!B26 ->  | N26: 0 | T26: 0 | U26: 0 | V26: 0 | W26: 0 | X26: 0 | Z26: 0 | AA26: 0 | AB26: 0 | AC26: 0
E27: ='1.Semester'!B27 ->  | N27: 0 | T27: 0 | U27: 0 | V27: 0 | W27: 0 | X27: 0 | Z27: 0 | AA27: 0 | AB27: 0 | AC27: 0
E28: ='1.Semester'!B28 ->  | N28: 0 | T28: 0 | U28: 0 | V28: 0 | W28: 0 | X28: 0 | Z28: 0 | AA28: 0 | AB28: 0 | AC28: 0
E29: ='1.Semester'!B29 ->  | N29: 0 | T29: =SUM(U29:X29) -> 0 | U29: 0 | V29: 0 | W29: 0 | X29: 0 | Z29: 0 | AA29: 0 | AB29: 0 | AC29: 0
B30: Durchschnitt | C30: =IF(ISERROR(ROUND(AVERAGE(C5:C29),2)),"",ROUND(AVERAGE(C5:C29),2)) -> 3.5 | D30: =IF(ISERROR(ROUND(AVERAGE(D5:D29),2)),"",ROUND(AVERAGE(D5:D29),2)) -> 3.66 | F30: =IF(ISERROR(ROUND(AVERAGE(F5:F29),2)),"",ROUND(AVERAGE(F5:F29),2)) -> 13.67 | G30: 3.93 | H30: 10.5 | I30: 3.78 | J30: 10.5 | K30: 3.2 | P30: =IF(ISERROR(ROUND(AVERAGE(P5:P29),2)),"",ROUND(AVERAGE(P5:P29),2)) ->  | Q30: =IF(ISERROR(ROUND(AVERAGE(Q5:Q29),2)),"",ROUND(AVERAGE(Q5:Q29),2)) ->  | R30: =IF(ISERROR(ROUND(AVERAGE(R5:R29),2)),"",ROUND(AVERAGE(R5:R29),2)) -> 
B31: Stabwn | C31: =IF(ISERROR(ROUND(STDEVP(C5:C29),2)),"",ROUND(STDEVP(C5:C29),2)) -> 1.22 | D31: =IF(ISERROR(ROUND(STDEVP(D5:D29),2)),"",ROUND(STDEVP(D5:D29),2)) -> 1.25 | F31: =IF(ISERROR(ROUND(STDEVP(F5:F29),2)),"",ROUND(STDEVP(F5:F29),2)) -> 1.25 | G31: 0.25 | H31: 9.5 | I31: 2.48 | J31: 9.5 | K31: 2
B32: Pmax | F32: 27 | H32: 20 | J32: 25
B33: P Note 6 | F33: 24 | H33: 19 | J33: 24
B34: P Note 4 | F34: 14 | H34: 11 | J34: 14

Sheet Matura
A1: Notenzusammenfassung
A2: Name | B2: 1.Sem | C2: 2.Sem | D2: ErfNote | E2: MP | F2: Fachnote
B3: ='1.Semester'!B5 -> 3 | C3: ='2.Semester'!C5 -> 5 | D3: =ROUND( (B3+C3)/2,2) -> 4 | F3: =ROUND((D3+E3)/2,1) -> 2 | H3: Graphik:
B4: ='1.Semester'!B6 -> 4.5 | C4: ='2.Semester'!C6 -> 2 | D4: =ROUND( (B4+C4)/2,2) -> 3.25 | F4: =ROUND((D4+E4)/2,1) -> 1.6 | H4: Note | I4: Anzahl
B5: ='1.Semester'!B7 -> 3.5 | C5: ='2.Semester'!C7 -> 3.5 | D5: 3.5 | F5: 1.8 | H5: 1 | I5: =COUNTIF($E$3:$E$19,H5) -> 0
B6: ='1.Semester'!B8 ->  | C6: ='2.Semester'!C8 ->  | H6: 1.5 | I6: =COUNTIF($E$3:$E$19,H6) -> 0
B7: ='1.Semester'!B9 ->  | C7: ='2.Semester'!C9 ->  | H7: 2 | I7: 0
B8: ='1.Semester'!B10 ->  | C8: ='2.Semester'!C10 ->  | H8: 2.5 | I8: 0
B9: ='1.Semester'!B11 ->  | C9: ='2.Semester'!C11 ->  | H9: 3 | I9: 0
B10: ='1.Semester'!B12 ->  | C10: ='2.Semester'!C12 ->  | H10: 3.5 | I10: 0
B11: ='1.Semester'!B13 ->  | C11: ='2.Semester'!C13 ->  | H11: 4 | I11: 0
B12: ='1.Semester'!B14 ->  | C12: ='2.Semester'!C14 ->  | H12: 4.5 | I12: 0
B13: ='1.Semester'!B15 ->  | C13: ='2.Semester'!C15 ->  | H13: 5 | I13: 0
B14: ='1.Semester'!B16 ->  | C14: ='2.Semester'!C16 ->  | H14: 5.5 | I14: 0
B15: ='1.Semester'!B17 ->  | C15: ='2.Semester'!C17 ->  | H15: 6 | I15: 0
B16: ='1.Semester'!B18 ->  | C16: ='2.Semester'!C18 -> 
B17: ='1.Semester'!B19 ->  | C17: ='2.Semester'!C19 -> 
B18: ='1.Semester'!B20 ->  | C18: ='2.Semester'!C20 -> 
B19: ='[1]2.Semester'!G20 ->  | C19: ='[1]2.Semester'!C20 -> 
A21: Durchschnitt | B21: =ROUND(AVERAGE(B3:B19),2) -> 3.67 | C21: =ROUND(AVERAGE(C3:C19),2) -> 3.5
A22: Stabwn | B22: =ROUND(STDEVP(B3:B19),2) -> 0.62 | C22: =ROUND(STDEVP(C3:C19),2) -> 1.22

Sheet Tabelle5

Sheet Tabelle6

Sheet Tabelle7

Sheet Tabelle8

Sheet Tabelle9

Sheet Tabelle10

Sheet Tabelle11

Sheet Tabelle12

Sheet Tabelle13

Sheet Tabelle14

Sheet Tabelle15

Sheet Tabelle16
